fUSD/lending_fUSD_20250208
["ID","MTS","AMOUNT","RATE_DAILY","PERIOD"]
[352322868,1739041842940,-500.0,0.00010272,2]
[352322871,1739041842950,-903.69,0.00010272,2]
[352322874,1739041842964,-500.0,0.00010272,2]
[352322876,1739041842974,-566.99,0.00010272,2]
[352322880,1739041842984,-500.0,0.00010272,2]
[352322883,1739041842994,-1519.31,0.00010272,2]
[352322885,1739041843005,-1497.88,0.00010272,2]
[352322888,1739041843014,-888.46,0.00010272,2]
[352322891,1739041843023,-1132.9,0.00010272,2]
[352322894,1739041843033,-812.47,0.00010272,2]
[352322897,1739041843043,-983.35,0.00010272,2]
[352322900,1739041843052,-635.74,0.00010272,2]
[352322903,1739041843062,-799.42,0.00010272,2]
[352322906,1739041843071,-500.0,0.00010272,2]
[352322909,1739041843080,-1296.49,0.00010272,2]
[352322912,1739041843090,-906.39,0.00010272,2]
[352322916,1739041843100,-2243.06,0.00010272,2]
[352322920,1739041843110,-500.0,0.00010272,2]
[352322924,1739041843119,-1223.25,0.00010272,2]
[352322928,1739041843128,-643.49587837,0.00010272,2]
[352322931,1739041843138,-530.97,0.00010272,2]
[352322935,1739041843147,-500.0,0.00010272,2]
[352322940,1739041843157,-500.0,0.00010272,2]
[352322944,1739041843166,-500.0,0.00010272,2]
[352322946,1739041843175,-1053.46,0.00010272,2]
[352322950,1739041843185,-500.0,0.00010272,2]
[352322951,1739041843194,-1194.18,0.00010272,2]
[352322954,1739041843204,-598.45,0.00010272,2]
[352322958,1739041843214,-500.0,0.00010272,2]
[352322961,1739041843223,-1329.1,0.00010272,2]
[352322963,1739041843232,-594.78,0.00010272,2]
[352322966,1739041843241,-527.65,0.00010272,2]
[352322969,1739041843251,-578.09,0.00010272,2]
[352322972,1739041843260,-500.0,0.00010272,2]
[352322974,1739041843271,-500.0,0.00010272,2]
[352322976,1739041843280,-500.0,0.00010272,2]
[352322978,1739041843290,-2009.37,0.00010272,2]
[352322980,1739041843299,-1091.84,0.00010272,2]
[352322982,1739041843308,-500.0,0.00010272,2]
[352322984,1739041843318,-1193.02,0.00010272,2]
[352322986,1739041843326,-500.0,0.00010272,2]
[352322988,1739041843335,-1468.04049639,0.00010309,2]
[352322990,1739041843344,-500.0,0.00010409,2]
[352322992,1739041843353,-500.0,0.00010409,2]
[352322994,1739041843362,-500.0,0.00010409,2]
[352322996,1739041843371,-500.0,0.00010409,2]
[352322998,1739041843380,-500.0,0.00010409,2]
[352323000,1739041843390,-560.6,0.00010409,2]
[352323002,1739041843398,-500.0,0.00010409,2]
[352323004,1739041843408,-500.0,0.00010409,2]
[352323005,1739041843417,-500.0,0.00010409,2]
[352323007,1739041843427,-615.950144,0.00010409,2]
[352323010,1739041843438,-669.64,0.00010409,2]
[352323012,1739041843451,-500.0,0.00010409,2]
[352323013,1739041843460,-500.0,0.00010409,2]
[352323015,1739041843470,-411.82315986,0.00010409,2]
[352323018,1739041843481,-529.46,0.00010409,2]
[352323019,1739041843490,-500.0,0.00010409,2]
[352323021,1739041843499,-500.0,0.00010409,2]
[352323023,1739041843509,-500.0,0.00010409,2]
[352323025,1739041843518,-500.0,0.00010409,2]
[352323027,1739041843527,-500.0,0.00010409,2]
[352323029,1739041843536,-500.0,0.00010409,2]
[352323031,1739041843546,-500.0,0.00010409,2]
[352323033,1739041843554,-500.0,0.00010409,2]
[352323035,1739041843564,-500.0,0.00010409,2]
[352323038,1739041843573,-790.785821,0.00010409,2]
[352323041,1739041843582,-500.0,0.00010409,2]
[352323044,1739041843591,-500.0,0.00010409,2]
[352323046,1739041843601,-500.0,0.00010409,2]
[352323048,1739041843610,-500.0,0.00010409,2]
[352323050,1739041843619,-500.0,0.00010409,2]
[352323052,1739041843628,-1033.25,0.00010409,2]
[352323054,1739041843637,-500.0,0.00010409,2]
[352323056,1739041843647,-500.0,0.00010409,2]
[352323058,1739041843656,-500.0,0.00010409,2]
[352323060,1739041843665,-615.85,0.00010409,2]
[352323062,1739041843675,-500.0,0.00010409,2]
[352323064,1739041843684,-500.0,0.00010409,2]
[352323066,1739041843693,-500.0,0.00010409,2]
[352323068,1739041843702,-500.0,0.00010409,2]
[352323070,1739041843712,-500.0,0.00010409,2]
[352323072,1739041843722,-617.29,0.00010409,2]
[352323074,1739041843731,-500.0,0.00010409,2]
[352323076,1739041843740,-603.44,0.00010409,2]
[352323078,1739041843749,-500.0,0.00010409,2]
[352323080,1739041843758,-728.319056,0.00010409,2]
[352323082,1739041843767,-500.0,0.00010409,2]
[352323084,1739041843776,-645.84,0.00010409,2]
[352323086,1739041843785,-500.0,0.00010409,2]
[352323088,1739041843794,-500.0,0.00010409,2]
[352323090,1739041843803,-799.92,0.00010409,2]
[352323092,1739041843813,-500.0,0.00010409,2]
[352323094,1739041843822,-814.03,0.00010409,2]
[352323096,1739041843831,-500.0,0.00010409,2]
[352323098,1739041843840,-265.49879449,0.00010409,2]
[352323100,1739041843850,-737.69,0.00010409,2]
[352323102,1739041843860,-500.0,0.00010409,2]
[352323104,1739041843869,-761.06,0.00010409,2]
[352323106,1739041843878,-500.0,0.00010409,2]
[352323108,1739041843888,-914.41,0.00010409,2]
[352323110,1739041843897,-747.91,0.00010409,2]
[352323112,1739041843906,-500.0,0.00010409,2]
[352323114,1739041843915,-710.32,0.00010409,2]
[352323116,1739041843925,-500.0,0.00010409,2]
[352323118,1739041843934,-500.0,0.00010409,2]
[352323120,1739041843943,-500.0,0.00010409,2]
[352323122,1739041843952,-500.0,0.00010409,2]
[352323124,1739041843968,-755.6,0.00010409,2]
[352323126,1739041843977,-500.0,0.00010409,2]
[352323128,1739041843987,-682.72,0.00010409,2]
[352323130,1739041843996,-500.0,0.00010409,2]
[352323132,1739041844006,-500.0,0.00010409,2]
[352323134,1739041844015,-953.35,0.00010409,2]
[352323136,1739041844024,-500.0,0.00010409,2]
[352323138,1739041844035,-500.0,0.00010409,2]
[352323140,1739041844044,-500.0,0.00010409,2]
[352323142,1739041844053,-607.9,0.00010409,2]
[352323143,1739041844063,-500.0,0.00010409,2]
[352323146,1739041844073,-626.23,0.00010409,2]
[352323147,1739041844082,-500.0,0.00010409,2]
[352323149,1739041844091,-500.0,0.00010409,2]
[352323151,1739041844101,-500.0,0.00010409,2]
[352323153,1739041844111,-500.0,0.00010409,2]
[352323155,1739041844121,-500.0,0.00010409,2]
[352323157,1739041844130,-500.0,0.00010409,2]
[352323159,1739041844139,-568.76,0.00010409,2]
[352323161,1739041844149,-607.91,0.00010409,2]
[352323163,1739041844159,-500.0,0.00010409,2]
[352323165,1739041844168,-500.0,0.00010409,2]
[352323167,1739041844177,-500.0,0.00010409,2]
[352323169,1739041844186,-802.19,0.00010409,2]
[352323171,1739041844196,-500.0,0.00010409,2]
[352323173,1739041844206,-500.0,0.00010409,2]
[352323175,1739041844215,-500.0,0.00010409,2]
[352323177,1739041844225,-500.0,0.00010409,2]
[352323179,1739041844234,-500.0,0.00010409,2]
[352323181,1739041844244,-699.68,0.00010409,2]
[352323183,1739041844253,-500.0,0.00010409,2]
[352323185,1739041844262,-500.0,0.00010409,2]
[352323187,1739041844271,-500.0,0.00010409,2]
[352323189,1739041844280,-500.0,0.00010409,2]
[352323191,1739041844289,-500.0,0.00010409,2]
[352323193,1739041844299,-500.0,0.00010409,2]
[352323195,1739041844309,-832.98,0.00010409,2]
[352323197,1739041844319,-342.35,0.00010409,2]
[352323199,1739041844328,-500.0,0.00010409,2]
[352323201,1739041844338,-500.0,0.00010409,2]
[352323203,1739041844348,-500.0,0.00010409,2]
[352323205,1739041844357,-500.0,0.00010409,2]
[352323207,1739041844367,-500.0,0.00010409,2]
[352323209,1739041844376,-339.10410526,0.00010409,2]
[352323211,1739041844386,-500.0,0.00010409,2]
[352323213,1739041844396,-500.0,0.00010409,2]
[352323215,1739041844406,-500.0,0.00010409,2]
[352323217,1739041844415,-500.0,0.00010409,2]
[352323219,1739041844425,-724.77,0.00010409,2]
[352323221,1739041844435,-500.0,0.00010409,2]
[352323223,1739041844444,-500.0,0.00010409,2]
[352323225,1739041844453,-542.61422892,0.00010409,2]
[352323227,1739041844463,-500.0,0.00010409,2]
[352323229,1739041844473,-500.0,0.00010409,2]
[352323231,1739041844482,-500.0,0.00010409,2]
[352323233,1739041844491,-403.73586186,0.00010409,2]
[352323235,1739041844501,-500.0,0.00010409,2]
[352323237,1739041844510,-500.0,0.00010409,2]
[352323239,1739041844520,-543.41346316,0.00010409,2]
[352323241,1739041844529,-244.49291979,0.00010409,2]
[352323243,1739041844539,-500.0,0.00010409,2]
[352323245,1739041844548,-500.0,0.00010409,2]
[352323247,1739041844558,-500.0,0.00010409,2]
[352323249,1739041844568,-500.0,0.00010409,2]
[352323251,1739041844577,-500.0,0.00010409,2]
[352323253,1739041844587,-562.04,0.00010409,2]
[352323255,1739041844597,-238.179977,0.00010409,2]
[352323257,1739041844606,-500.0,0.00010409,2]
[352323259,1739041844615,-500.0,0.00010409,2]
[352323261,1739041844624,-500.0,0.00010409,2]
[352323263,1739041844633,-525.68540556,0.00010409,2]
[352323265,1739041844643,-500.0,0.00010409,2]
[352323267,1739041844652,-500.0,0.00010409,2]
[352323269,1739041844662,-500.0,0.00010409,2]
[352323271,1739041844672,-825.35,0.00010409,2]
[352323273,1739041844681,-500.0,0.00010409,2]
[352323275,1739041844691,-500.0,0.00010409,2]
[352323277,1739041844700,-500.0,0.00010409,2]
[352323279,1739041844710,-575.79,0.00010409,2]
[352323281,1739041844720,-746.93,0.00010409,2]
[352323283,1739041844729,-500.0,0.00010409,2]
[352323285,1739041844739,-500.0,0.00010409,2]
[352323287,1739041844749,-677.28,0.00010409,2]
[352323289,1739041844759,-500.0,0.00010409,2]
[352323291,1739041844768,-500.0,0.00010409,2]
[352323293,1739041844777,-500.0,0.00010409,2]
[352323295,1739041844787,-770.06,0.00010409,2]
[352323297,1739041844797,-192.33,0.00010409,2]
[352323299,1739041844806,-500.0,0.00010409,2]
[352323301,1739041844816,-500.0,0.00010409,2]
[352323303,1739041844826,-500.0,0.00010409,2]
[352323305,1739041844835,-546.94,0.00010409,2]
[352323307,1739041844845,-726.9,0.00010409,2]
[352323309,1739041844854,-500.0,0.00010409,2]
[352323311,1739041844864,-345.09,0.00010409,2]
[352323313,1739041844874,-500.0,0.00010409,2]
[352323315,1739041844883,-500.0,0.00010409,2]
[352323317,1739041844893,-911.33,0.00010409,2]
[352323319,1739041844903,-500.0,0.00010409,2]
[352323321,1739041844912,-500.0,0.00010409,2]
[352323323,1739041844921,-500.0,0.00010409,2]
[352323325,1739041844931,-500.0,0.00010409,2]
[352323327,1739041844940,-500.0,0.00010409,2]
[352323329,1739041844950,-766.94,0.00010409,2]
[352323331,1739041844962,-576.16,0.00010409,2]
[352323333,1739041844971,-411.54461355,0.00010409,2]
[352323335,1739041844981,-500.0,0.00010409,2]
[352323337,1739041844990,-500.0,0.00010409,2]
[352323339,1739041845001,-500.0,0.00010409,2]
[352323341,1739041845010,-500.0,0.00010409,2]
[352323343,1739041845020,-500.0,0.00010409,2]
[352323345,1739041845029,-500.0,0.00010409,2]
[352323347,1739041845040,-500.0,0.00010409,2]
[352323349,1739041845049,-500.0,0.00010409,2]
[352323351,1739041845059,-655.03,0.00010409,2]
[352323353,1739041845068,-500.0,0.00010409,2]
[352323355,1739041845077,-500.0,0.00010409,2]
[352323357,1739041845087,-805.15,0.00010409,2]
[352323359,1739041845096,-727.47,0.00010409,2]
[352323361,1739041845106,-500.0,0.00010409,2]
[352323363,1739041845116,-670.05,0.00010409,2]
[352323365,1739041845126,-946.41,0.00010409,2]
[352323367,1739041845135,-500.0,0.00010409,2]
[352323369,1739041845144,-500.0,0.00010409,2]
[352323371,1739041845154,-500.0,0.00010409,2]
[352323373,1739041845163,-500.0,0.00010409,2]
[352323375,1739041845173,-500.0,0.00010409,2]
[352323377,1739041845183,-500.0,0.00010409,2]
[352323379,1739041845193,-820.27,0.00010409,2]
[352323381,1739041845202,-500.0,0.00010409,2]
[352323383,1739041845211,-500.0,0.00010409,2]
[352323384,1739041845221,-633.59,0.00010409,2]
[352323385,1739041845231,-500.0,0.00010409,2]
[352323386,1739041845240,-717.44,0.00010409,2]
[352323387,1739041845250,-500.0,0.00010409,2]
[352323388,1739041845261,-696.37,0.00010409,2]
[352323389,1739041845270,-581.49,0.00010409,2]
[352323390,1739041845280,-500.0,0.00010409,2]
[352323391,1739041845290,-500.0,0.00010409,2]
[352323392,1739041845299,-828.97,0.00010409,2]
[352323393,1739041845309,-500.0,0.00010409,2]
[352323394,1739041845318,-500.0,0.00010409,2]
[352323395,1739041845328,-500.0,0.00010409,2]
[352323396,1739041845338,-500.0,0.00010409,2]
[352323397,1739041845347,-500.0,0.00010409,2]
[352323398,1739041845357,-500.0,0.00010409,2]
[352323399,1739041845367,-500.0,0.00010409,2]
[352323400,1739041845376,-500.0,0.00010409,2]
[352323401,1739041845386,-500.0,0.00010409,2]
[352323403,1739041845395,-984.83,0.00010409,2]
[352323404,1739041845405,-500.0,0.00010409,2]
[352323405,1739041845415,-500.0,0.00010409,2]
[352323406,1739041845425,-500.0,0.00010409,2]
[352323407,1739041845435,-713.91,0.00010409,2]
[352323408,1739041845445,-500.0,0.00010409,2]
[352323409,1739041845455,-500.0,0.00010409,2]
[352323410,1739041845465,-1784.84,0.00010409,2]
[352323411,1739041845475,-500.0,0.00010409,2]
[352323413,1739041845484,-522.08737286,0.00010409,2]
[352323414,1739041845494,-500.0,0.00010409,2]
[352323415,1739041845504,-732.41,0.00010409,2]
[352323416,1739041845514,-1154.36,0.00010409,2]
[352323417,1739041845523,-500.0,0.00010409,2]
[352323418,1739041845533,-981.42,0.00010409,2]
[352323419,1739041845543,-500.0,0.00010409,2]
[352323420,1739041845553,-500.0,0.00010409,2]
[352323421,1739041845562,-1063.64,0.00010409,2]
[352323422,1739041845572,-500.0,0.00010409,2]
[352323423,1739041845582,-500.0,0.00010409,2]
[352323424,1739041845592,-500.0,0.00010409,2]
[352323425,1739041845601,-529.33,0.00010409,2]
[352323426,1739041845611,-693.99,0.00010409,2]
[352323427,1739041845759,-544.1,0.00010409,2]
[352323428,1739041845798,-942.44,0.00010409,2]
[352323429,1739041845808,-500.0,0.00010409,2]
[352323430,1739041845818,-500.0,0.00010409,2]
[352323431,1739041845828,-641.06,0.00010409,2]
[352323432,1739041845838,-938.67,0.00010409,2]
[352323433,1739041845848,-799.99,0.00010409,2]
[352323434,1739041845858,-1324.41,0.00010409,2]
[352323435,1739041845868,-500.0,0.00010409,2]
[352323436,1739041845878,-1438.25,0.00010409,2]
[352323437,1739041845888,-500.0,0.00010409,2]
[352323438,1739041845898,-2852.49,0.00010409,2]
[352323439,1739041845907,-500.0,0.00010409,2]
[352323440,1739041845918,-252.50989924,0.00010409,2]
[352323441,1739041845928,-500.0,0.00010409,2]
[352323442,1739041845938,-862.91,0.00010409,2]
[352323444,1739041845948,-500.0,0.00010409,2]
[352323446,1739041845959,-718.25,0.00010409,2]
[352323447,1739041845969,-3726.95,0.00010409,2]
[352323448,1739041845978,-918.03,0.00010409,2]
[352323449,1739041845987,-500.0,0.00010409,2]
[352323450,1739041845998,-500.0,0.00010409,2]
[352323451,1739041846008,-899.65,0.00010409,2]
[352323452,1739041846017,-500.0,0.00010409,2]
[352323453,1739041846027,-1258.64,0.00010409,2]
[352323454,1739041846038,-500.0,0.00010409,2]
[352323455,1739041846047,-500.0,0.00010409,2]
[352323456,1739041846057,-500.0,0.00010409,2]
[352323457,1739041846066,-982.29,0.00010409,2]
[352323458,1739041846076,-500.0,0.00010409,2]
[352323459,1739041846086,-641.41,0.00010409,2]
[352323460,1739041846096,-500.0,0.00010409,2]
[352323461,1739041846105,-500.0,0.00010409,2]
[352323462,1739041846115,-2158.87,0.00010409,2]
[352323463,1739041846124,-1087.78,0.00010409,2]
[352323464,1739041846134,-500.0,0.00010409,2]
[352323465,1739041846143,-500.0,0.00010409,2]
[352323466,1739041846153,-500.0,0.00010409,2]
[352323467,1739041846163,-819.14,0.00010409,2]
[352323468,1739041846172,-787.63,0.00010409,2]
[352323469,1739041846181,-500.0,0.00010409,2]
[352323470,1739041846191,-500.0,0.00010409,2]
[352323471,1739041846201,-1160.92,0.00010409,2]
[352323472,1739041846211,-757.74,0.00010409,2]
[352323473,1739041846220,-500.0,0.00010409,2]
[352323474,1739041846230,-500.0,0.00010409,2]
[352323475,1739041846239,-500.0,0.00010409,2]
[352323476,1739041846249,-500.0,0.00010409,2]
[352323477,1739041846259,-728.73,0.00010409,2]
[352323478,1739041846269,-1062.52,0.00010409,2]
[352323479,1739041846279,-500.0,0.00010409,2]
[352323480,1739041846288,-1173.18,0.00010409,2]
[352323481,1739041846298,-500.0,0.00010409,2]
[352323482,1739041846308,-500.0,0.00010409,2]
[352323483,1739041846317,-947.54,0.00010409,2]
[352323484,1739041846327,-500.0,0.00010409,2]
[352323485,1739041846336,-500.0,0.00010409,2]
[352323486,1739041846345,-1164.89,0.00010409,2]
[352323487,1739041846355,-500.0,0.00010409,2]
[352323488,1739041846364,-1362.95,0.00010409,2]
[352323489,1739041846374,-2062.09,0.00010409,2]
[352323490,1739041846383,-500.0,0.00010409,2]
[352323491,1739041846392,-500.0,0.00010409,2]
[352323492,1739041846402,-500.0,0.00010409,2]
[352323493,1739041846411,-500.0,0.00010409,2]
[352323494,1739041846420,-822.0,0.00010409,2]
[352323495,1739041846430,-1631.6,0.00010409,2]
[352323496,1739041846439,-849.24,0.00010409,2]
[352323497,1739041846449,-1223.38,0.00010409,2]
[352323498,1739041846459,-833.26,0.00010409,2]
[352323499,1739041846469,-500.0,0.00010409,2]
[352323500,1739041846478,-1084.39,0.00010409,2]
[352323501,1739041846487,-1273.56,0.00010409,2]
[352323503,1739041846497,-500.0,0.00010409,2]
[352323504,1739041846506,-500.0,0.00010409,2]
[352323505,1739041846515,-500.0,0.00010409,2]
[352323506,1739041846524,-1364.9,0.00010409,2]
[352323507,1739041846534,-753.44,0.00010409,2]
[352323508,1739041846543,-500.0,0.00010409,2]
[352323509,1739041846553,-500.0,0.00010409,2]
[352323510,1739041846563,-1667.12,0.00010409,2]
[352323511,1739041846573,-601.2,0.00010409,2]
[352323512,1739041846582,-1121.99,0.00010409,2]
[352323513,1739041846592,-500.0,0.00010409,2]
[352323514,1739041846602,-1552.54,0.00010409,2]
[352323515,1739041846611,-500.0,0.00010409,2]
[352323516,1739041846621,-781.18,0.00010409,2]
[352323517,1739041846630,-1873.33,0.00010409,2]
[352323518,1739041846640,-771.32,0.00010409,2]
[352323519,1739041846649,-872.77,0.00010409,2]
[352323520,1739041846658,-534.26214145,0.00010409,2]
[352323521,1739041846667,-793.82,0.00010409,2]
[352323522,1739041846676,-1136.25,0.00010409,2]
[352323523,1739041846685,-500.0,0.00010409,2]
[352323524,1739041846694,-500.0,0.00010409,2]
[352323525,1739041846704,-1589.05,0.00010409,2]
[352323526,1739041846714,-500.0,0.00010409,2]
[352323527,1739041846723,-1682.64,0.00010409,2]
[352323528,1739041846733,-869.04,0.00010409,2]
[352323529,1739041846742,-1111.36,0.00010409,2]
[352323530,1739041846752,-500.0,0.00010409,2]
[352323531,1739041846761,-1760.96,0.00010409,2]
[352323532,1739041846770,-500.0,0.00010409,2]
[352323533,1739041846780,-1358.09,0.00010409,2]
[352323534,1739041846789,-2598.74,0.00010409,2]
[352323535,1739041846799,-500.0,0.00010409,2]
[352323536,1739041846808,-3618.91,0.00010409,2]
[352323537,1739041846819,-1540.41,0.00010409,2]
[352323538,1739041846828,-934.7,0.00010409,2]
[352323539,1739041846838,-812.95,0.00010409,2]
[352323540,1739041846848,-500.0,0.00010409,2]
[352323541,1739041846857,-1255.84,0.00010409,2]
[352323542,1739041846867,-500.0,0.00010409,2]
[352323543,1739041846876,-602.7,0.00010409,2]
[352323544,1739041846886,-1000.0,0.00010409,2]
[352323545,1739041846895,-827.08,0.00010409,2]
[352323546,1739041846904,-1125.11,0.00010409,2]
[352323547,1739041846915,-500.0,0.00010409,2]
[352323548,1739041846924,-500.0,0.00010409,2]
[352323549,1739041846933,-963.9,0.00010409,2]
[352323550,1739041846943,-812.45,0.00010409,2]
[352323551,1739041846955,-1464.68,0.00010409,2]
[352323552,1739041846974,-1352.76,0.00010409,2]
[352323553,1739041846984,-915.85,0.00010409,2]
[352323554,1739041846993,-500.0,0.00010409,2]
[352323555,1739041847003,-500.0,0.00010409,2]
[352323556,1739041847013,-500.0,0.00010409,2]
[352323557,1739041847023,-157.36190615,0.00010409,2]
[352323558,1739041847033,-903.69,0.00010409,2]
[352323559,1739041847042,-500.0,0.00010409,2]
[352323560,1739041847052,-566.99,0.00010409,2]
[352323561,1739041847061,-500.0,0.00010409,2]
[352323563,1739041847071,-1519.31,0.00010409,2]
[352323565,1739041847081,-1497.88,0.00010409,2]
[352323567,1739041847091,-888.46,0.00010409,2]
[352323569,1739041847101,-1132.9,0.00010409,2]
[352323571,1739041847111,-812.47,0.00010409,2]
[352323573,1739041847120,-500.0,0.00010409,2]
[352323575,1739041847130,-983.35,0.00010409,2]
[352323577,1739041847140,-635.74,0.00010409,2]
[352323579,1739041847150,-799.42,0.00010409,2]
[352323581,1739041847159,-500.0,0.00010409,2]
[352323583,1739041847169,-1296.49,0.00010409,2]
[352323585,1739041847179,-906.39,0.00010409,2]
[352323587,1739041847190,-2243.06,0.00010409,2]
[352323588,1739041847200,-500.0,0.00010409,2]
[352323589,1739041847210,-1223.25,0.00010409,2]
[352323590,1739041847219,-530.97,0.00010409,2]
[352323591,1739041847228,-500.0,0.00010409,2]
[352323592,1739041847238,-500.0,0.00010409,2]
[352323593,1739041847247,-500.0,0.00010409,2]
[352323594,1739041847256,-1053.46,0.00010409,2]
[352323595,1739041847266,-500.0,0.00010409,2]
[352323596,1739041847277,-1194.18,0.00010409,2]
[352323597,1739041847287,-598.45,0.00010409,2]
[352323599,1739041847297,-500.0,0.00010409,2]
[352323601,1739041847307,-1329.1,0.00010409,2]
[352323603,1739041847316,-594.78,0.00010409,2]
[352323605,1739041847325,-527.65,0.00010409,2]
[352323607,1739041847335,-578.09,0.00010409,2]
[352323609,1739041847344,-500.0,0.00010409,2]
[352323611,1739041847354,-500.0,0.00010409,2]
[352323613,1739041847364,-500.0,0.00010409,2]
[352323615,1739041847374,-2009.37,0.00010409,2]
[352323617,1739041847383,-1091.84,0.00010409,2]
[352323619,1739041847395,-500.0,0.00010409,2]
[352323621,1739041847405,-1193.02,0.00010409,2]
[352323623,1739041847415,-874.39,0.00010441,2]
[352323625,1739041847425,-1468.04049637,0.00010446,2]
[352323627,1739041847436,-350.75,0.00010513,2]
[352323628,1739041847446,-270.87232306,0.00010536,2]
[352323630,1739041847456,-500.0,0.00010546,2]
[352323632,1739041847468,-500.0,0.00010546,2]
[352323634,1739041847479,-500.0,0.00010546,2]
[352323636,1739041847489,-500.0,0.00010546,2]
[352323638,1739041847499,-500.0,0.00010546,2]
[352323639,1739041847509,-669.64,0.00010546,2]
[352323641,1739041847518,-500.0,0.00010546,2]
[352323643,1739041847528,-500.0,0.00010546,2]
[352323644,1739041847537,-529.46,0.00010546,2]
[352323646,1739041847546,-500.0,0.00010546,2]
[352323648,1739041847555,-600.9,0.00010546,2]
[352323650,1739041847565,-500.0,0.00010546,2]
[352323651,1739041847575,-500.0,0.00010546,2]
[352323653,1739041847584,-316.63848596,0.00010546,2]
[352323655,1739041847594,-500.0,0.00010546,2]
[352323656,1739041847603,-500.0,0.00010546,2]
[352323658,1739041847613,-790.785821,0.00010546,2]
[352323660,1739041847623,-500.0,0.00010546,2]
[352323662,1739041847633,-500.0,0.00010546,2]
[352323664,1739041847643,-500.0,0.00010546,2]
[352323666,1739041847652,-500.0,0.00010546,2]
[352323667,1739041847662,-1033.25,0.00010546,2]
[352323669,1739041847672,-500.0,0.00010546,2]
[352323671,1739041847682,-500.0,0.00010546,2]
[352323673,1739041847691,-500.0,0.00010546,2]
[352323674,1739041847701,-615.85,0.00010546,2]
[352323676,1739041847711,-500.0,0.00010546,2]
[352323678,1739041847720,-500.0,0.00010546,2]
[352323680,1739041847730,-500.0,0.00010546,2]
[352323682,1739041847741,-500.0,0.00010546,2]
[352323683,1739041847750,-500.0,0.00010546,2]
[352323684,1739041847759,-617.29,0.00010546,2]
[352323686,1739041847769,-500.0,0.00010546,2]
[352323688,1739041847778,-603.44,0.00010546,2]
[352323689,1739041847788,-307.16115993,0.00010546,2]
[352323691,1739041847797,-728.319056,0.00010546,2]
[352323693,1739041847807,-500.0,0.00010546,2]
[352323694,1739041847816,-500.0,0.00010546,2]
[352323696,1739041847826,-799.92,0.00010546,2]
[352323698,1739041847835,-814.03,0.00010546,2]
[352323699,1739041847845,-500.0,0.00010546,2]
[352323701,1739041847854,-737.69,0.00010546,2]
[352323703,1739041847864,-500.0,0.00010546,2]
[352323705,1739041847874,-761.06,0.00010546,2]
[352323706,1739041847884,-914.41,0.00010546,2]
[352323708,1739041847893,-747.91,0.00010546,2]
[352323710,1739041847903,-500.0,0.00010546,2]
[352323712,1739041847912,-710.32,0.00010546,2]
[352323713,1739041847923,-500.0,0.00010546,2]